Cogmind - Beta 15 @@@ ROGUE MODE // 2025.09.15 @ 22:55:35 Player: Lillith Result: Destroyed by G-47 Trooper with Particle Gun Performance ------------- Evolutions (0) 0 Regions Visited (3) 600 Robots Destroyed (19) 95 Value Destroyed (492) 492 Prototype IDs (0) 0 Alien Tech Used (0) 0 Bonus (0) 0 TOTAL SCORE: 1187 Bonus ------- None Cogmind --------- Core Integrity 0/250 Matter 298/300 Energy 196/200 System Corruption 0% Temperature Cool (44) Movement Rolling (90) Location -8/Recycling Parts ------- > --- POWER (1) -------- Subdweller Power Source > --- PROPULSION (2) --- Armored Wheel Armored Wheel > --- UTILITY (2) ------ (None) > --- WEAPON (2) ------- Subdweller Laser Subdweller Machine Gun > --- INVENTORY (5) ---- Subdweller Power Source Subdweller Monowheel Subdweller Optics Seismic Detector Grenade Launcher Peak State ------------ > --- POWER ------------ Subdweller Power Source > --- PROPULSION ------- Armored Wheel Subdweller Monowheel > --- UTILITY ---------- Scrap Shield > --- WEAPON ----------- Battle Rifle Subdweller Machine Gun > --- INVENTORY -------- Armored Wheel Armored Wheel Subdweller Optics Seismic Detector Grenade Launcher [Rating: 14] Favorites ----------- Power Subdweller Power Source Engine Subdweller Power Source Propulsion Armored Wheel Treads Light Treads Wheel Armored Wheel Flight Unit VTOL Module Utility Small Storage Unit Device Seismic Detector Storage Small Storage Unit Protection Scrap Shield Weapon Subdweller Machine Gun Energy Gun Subdweller Laser Energy Cannon Light EM Pulse Cannon Ballistic Gun Subdweller Machine Gun Launcher Grenade Launcher Build | -11 -10 -10 -8 ------- Run | Yrd Mat Sub Rec Slots Evolved . | . . . . Power . | . . . . Propulsion . | . . . . Utility . | . . . . Weapon . | . . . . Parts Attached 27 | 8 9 10 . Power 4 | 1 . 3 . Engine 4 | 1 . 3 . Core . | . . . . Reactor . | . . . . Propulsion 9 | 2 6 1 . Treads 1 | 1 . . . Leg . | . . . . Wheel 6 | 1 4 1 . Hover . | . . . . Flight 2 | . 2 . . Utility 4 | 2 . 2 . Device 1 | 1 . . . Storage 1 | 1 . . . Processor . | . . . . Hackware . | . . . . Protection 2 | . . 2 . Artifact . | . . . . Weapon 10 | 3 3 4 . Energy Gun 2 | 1 . 1 . Energy Cannon 2 | . 2 . . Ballistic Gun 5 | 2 1 2 . Ballistic Cannon . | . . . . Launcher 1 | . . 1 . Special Weapon . | . . . . Impact Weapon . | . . . . Slashing Weapon . | . . . . Piercing Weapon . | . . . . Special Melee Weapon . | . . . . Unidentified Prototypes . | . . . . Parts Lost 5 | . . 4 1 Power 1 | . . 1 . Propulsion 1 | . . 1 . Utility 2 | . . 1 1 Weapon 1 | . . 1 . Highest Loss Streak 1 | . . 1 1 To Critical Strikes . | . . . . Average Backups 6 | 4 8 6 5 Power . | . 1 . 1 Propulsion 2 | 2 4 2 1 Utility 1 | . 1 1 2 Weapon . | 1 1 . 1 Tool/Special . | . . . . Unused Backups 8 | 1 4 1 2 Power . | . . . . Propulsion 5 | 1 4 . . Utility 3 | . . 1 2 Weapon . | . . . . Tool/Special . | . . . . Average Slot Usage (%) 86 | . 96 85 85 Engine 14 | . 14 14 14 Wheel 27 | . 22 28 28 Device 6 | . 14 5 . Storage 6 | . 14 5 . Protection 6 | . . 7 14 Energy Gun 5 | . 6 4 14 Energy Cannon 3 | . 14 2 . Ballistic Gun 13 | . 5 14 14 Launcher 1 | . . 1 . Peak Build Rating 14 | 6 12 14 14 Average Rating 11 | 4 9 11 13 On Entrance 8 | . 6 12 14 Naked Turns . | . . . . Heaviest Build 31 | 12 17 31 31 Greatest Support 32 | 20 24 32 24 Greatest Overweight (x) 4 | 1 4 2 1 Average Overweight (x) . | . . . 1 Largest Inventory Capacity 8 | 8 8 8 5 Average Capacity 6 | 7 8 6 5 Most Carried 8 | 8 8 8 5 Average Carried 6 | 5 7 6 5 Final Capacity 8 | 8 8 5 5 Final Carried 8 | 8 8 5 5 Class Distribution -------------------- 55% | Mutant 44% | Subdweller-Mutant Dominant Class ---------------- Mutant | -10/Materials Subdweller-Mutant | -10/Subcaves Subdweller-Mutant | -8/Recycling Resources | -11 -10 -10 -8 ----------- Run | Yrd Mat Sub Rec Matter Collected 681 | 280 . 399 2 Remotely . | . . . . Salvage Created 540 | 148 . 342 50 Parts 41 | 11 . 25 5 Haulers Intercepted . | . . . . Recyclers Shooed . | . . . . Parts Field Recycled . | . . . . Retrieved Matter . | . . . . Parts Self-Destructed 11 | . . 11 . Prevented . | . . . . Kills | -11 -10 -10 -8 ------- Run | Yrd Mat Sub Rec Combat Hostiles Destroyed 13 | . . 12 1 Guns 9 | . . 8 1 AOE 4 | . . 4 . Classes Destroyed 6 | 2 . 3 1 Tunneler 3 | 3 . . . Recycler 1 | 1 . . . Turret 2 | . . 2 . Swarmer 4 | . . 4 . Sentry 1 | . . . 1 Subdweller 8 | . . 8 . Best Kill Streak 4 | 4 . 4 1 Combat Bots Only 4 | . . 4 1 Max Kills in Single Turn 2 | 1 . 2 1 Gunslinging . | . . . . Exploded 2 | . . 2 . Melee . | . . . . Uniques/NPCs Destroyed . | . . . . Combat | -11 -10 -10 -8 -------- Run | Yrd Mat Sub Rec Hostile Shots Fired 153 | . . 141 12 Missed 57 | . . 56 1 Hits 96 | . . 85 11 Projectile 96 | . . 85 11 AOE 4 | . . 4 . Critical Strikes 1 | . . . 1 Damage Taken 1147 | . . 991 156 Core 267 | . . 207 60 Absorbed by Shields 15 | . . . 15 Core Remaining (%) 100 | 100 . . . Volleys Fired 63 | 13 . 48 2 Largest 2 | 1 . 2 2 Hottest 112 | 50 . 112 90 Shots Fired 76 | 13 . 59 4 Gun 54 | 13 . 37 4 Cannon 15 | . . 15 . Launcher 7 | . . 7 . Special . | . . . . Kinetic 35 | . . 33 2 Thermal 19 | 13 . 4 2 Explosive 7 | . . 7 . Electromagnetic 15 | . . 15 . Robot Hit Streak 14 | 3 . 14 12 Robot Miss Streak 2 | 2 . 2 . Penetration Max . | . . . . Secondary Targets . | . . . . Shots Hit Robots 52 | 8 . 41 3 Core Hits 31 | 5 . 25 1 Critical Kills . | . . . . Critical Parts Destroyed . | . . . . Critical Strikes . | . . . . Melee Attacks . | . . . . Impact . | . . . . Slashing . | . . . . Piercing . | . . . . Sneak Attacks . | . . . . Combat Hostiles . | . . . . Follow-up Attacks . | . . . . Damage Inflicted 1391 | 97 . 1235 59 Guns 567 | 97 . 411 59 Cannons 169 | . . 169 . Explosions 655 | . . 655 . Melee . | . . . . Ramming . | . . . . Kinetic 394 | . . 374 20 Thermal 173 | 97 . 37 39 Explosive 655 | . . 655 . Electromagnetic 169 | . . 169 . Impact . | . . . . Slashing . | . . . . Piercing . | . . . . Highest Corruption . | . . . . Average Corruption . | . . . . Corruption Purged . | . . . . Corruption Blocked . | . . . . Overload Shots . | . . . . Overflow Damage 38 | . . 38 . Projectiles . | . . . . Explosions 38 | . . 38 . Melee . | . . . . Knockbacks . | . . . . Impact . | . . . . Kinetic . | . . . . Secondary . | . . . . Self-Inflicted Damage . | . . . . Shots . | . . . . Rammed . | . . . . Targets Rammed . | . . . . Kicked . | . . . . Crushed . | . . . . Highest Temperature 90 | 90 . 22 35 Average Temperature 27 | 35 . 11 20 Received Heat Transfer 460 | . . 378 82 Siege Activations . | . . . . Martial Activations . | . . . . Shielding Activations . | . . . . Robots Disrupted . | . . . . Combat Hostiles . | . . . . Robots Corrupted . | . . . . Combat Hostiles . | . . . . Parts Fried 1 | . . 1 . Impact Corruptions . | . . . . Robots Melted . | . . . . Combat Hostiles . | . . . . Parts Melted . | . . . . Heat Transferred 396 | 296 . 50 50 Parts Sabotaged . | . . . . Parts Stolen . | . . . . Parts Stripped . | . . . . Power Chain Reactions . | . . . . Alert | -11 -10 -10 -8 ------- Run | Yrd Mat Sub Rec Maximum Alert Level . | . . . . Low Security (%) 100 | 100 100 . 100 Level 1 . | . . . . Level 2 . | . . . . Level 3 . | . . . . Level 4 . | . . . . Level 5 . | . . . . High Security . | . . . . Max Security . | . . . . Peak Influence 86 | 10 . . 86 Initial 85 | . . . 85 Average 18 | 1 . . 77 Influence Increases 671 | 20 . 630 21 Destroy 0b10 Robot/C 140 | . . 120 20 Destroy 0b10 Robot/NC 20 | 20 . . . Destroy Structure 1 | . . . 1 Lose Combat Pursuer 510 | . . 510 . Influence Decreases 605 | 20 . 452 133 Entered New Map 93 | . . . 93 Time Decay 462 | 20 . 412 30 Lost Part 50 | . . 40 10 Squads Dispatched . | . . . . Investigation . | . . . . Extermination . | . . . . Reinforcement . | . . . . Assault . | . . . . Garrison . | . . . . Intercept . | . . . . Searches Triggered . | . . . . Construction Impeded . | . . . . Haulers Reinforced . | . . . . Active Scanning Responses . | . . . . Cargo Convoy Interrupts . | . . . . Stealth | -11 -10 -10 -8 --------- Run | Yrd Mat Sub Rec Distress Signals . | . . . . Communications Jammed . | . . . . Distress Signals . | . . . . Times Spotted 46 | . . 42 4 Peak Tracking Total 6 | . . 6 3 Tactical Retreats 5 | . . 5 . Traps | -11 -10 -10 -8 ------- Run | Yrd Mat Sub Rec Traps Triggered . | . . . . Indirectly . | . . . . Trap Hack Attempts . | . . . . Triggered . | . . . . Disarmed . | . . . . Reprogrammed . | . . . . Reused . | . . . . Traps Extracted . | . . . . Installed . | . . . . Triggered . | . . . . Machines | -11 -10 -10 -8 ---------- Run | Yrd Mat Sub Rec Machines Disabled 1 | . . 1 . Max in Single Turn 1 | . . 1 . Machines Repaired . | . . . . Machines Dismantled . | . . . . Machines Sabotaged . | . . . . Overloaded Fab Kills . | . . . . Hacking | -11 -10 -10 -8 --------- Run | Yrd Mat Sub Rec Machines Accessed 2 | . 1 1 . Terminals 1 | . 1 . . Fabricators . | . . . . Repair Stations . | . . . . Recycling Units . | . . . . Scanalyzers . | . . . . Garrison Access . | . . . . Total Hacks 9 | . 5 4 . Successful 5 | . 1 4 . Failed 4 | . 4 . . Catastrophic . | . . . . Database Lockouts . | . . . . Manual 5 | . 5 . . Terminals 5 | . 5 . . Fabricators . | . . . . Repair Stations . | . . . . Recycling Units . | . . . . Scanalyzers . | . . . . Garrison Access . | . . . . Terminal Hacks 4 | . . 4 . Record 4 | . . 4 . Fabricator Hacks . | . . . . Repair Station Hacks . | . . . . Recycling Unit Hacks . | . . . . Scanalyzer . | . . . . Garrison Access Hacks . | . . . . Unauthorized Hacks 1 | . 1 . . Terminals 1 | . 1 . . Skim 1 | . 1 . . Fabricators . | . . . . Repair Stations . | . . . . Recycling Units . | . . . . Scanalyzers . | . . . . Garrison Access . | . . . . Data Cores Recovered . | . . . . Used . | . . . . Hacking Detections 1 | . 1 . . Full Trace Events . | . . . . Feedback Events . | . . . . Feedback Blocked . | . . . . Robot Schematics Acquired . | . . . . Robots Built . | . . . . Authchips . | . . . . Time . | . . . . Total Robot Build Rating . | . . . . Part Schematics Acquired . | . . . . Parts Built . | . . . . Authchips . | . . . . Time . | . . . . Total Part Build Rating . | . . . . Parts Repaired . | . . . . Time . | . . . . Parts Recycled . | . . . . Recycled Matter . | . . . . Retrieved Matter . | . . . . Retrieved Components . | . . . . Parts Scanalyzed . | . . . . Part Schematics Acquired . | . . . . Parts Damaged . | . . . . Bothacking | -11 -10 -10 -8 ------------ Run | Yrd Mat Sub Rec Used RIF Installer . | . . . . Robots Hacked . | . . . . Non-combat . | . . . . Combat . | . . . . Robot Hacks Applied . | . . . . Relay Couplers Released . | . . . . Fabnet Peak Effective % . | . . . . Robots Rewired 1 | . . . 1 Allies Hacked . | . . . . Hacks Repelled . | . . . . Allies | -11 -10 -10 -8 -------- Run | Yrd Mat Sub Rec Total Allies 1 | . . . 1 Largest Group 1 | . . . 1 Highest-Rated Group 27 | . . . 27 Highest-Rated Ally 27 | . . . 27 Total Orders . | . . . . Ally Attacks . | . . . . Total Damage . | . . . . Kills . | . . . . Allies Corrupted . | . . . . Allies Melted 1 | . . 1 . Intel | -11 -10 -10 -8 ------- Run | Yrd Mat Sub Rec Active Infowar (turns) 696 | 35 145 516 . Seismic 696 | 35 145 516 . Robot Analysis Total . | . . . . Derelict Logs Recovered . | . . . . Drone Launches . | . . . . Drone Recoveries . | . . . . Exploration | -11 -10 -10 -8 ------------- Run | Yrd Mat Sub Rec Turns Passed 1612 | 129 145 1259 79 Spaces Moved 1347 | 59 126 1103 59 Core 8 | 4 4 . . Treads 45 | 45 . . . Legs . | . . . . Wheels 1294 | 10 122 1103 59 Hover . | . . . . Flight . | . . . . Fastest Speed 50 | 50 90 90 105 Average Speed 99 | 141 96 96 105 Slowest Speed 250 | 160 250 120 105 Overloaded Moves . | . . . . Propulsion Burnouts . | . . . . Robots Hopped . | . . . . Potential Cave-ins . | . . . . Cave-ins Triggered . | . . . . Exploration Rate (%) 19 | 4 13 47 15 Regions Visited 3 Branch Regions 2 Pre-discovered Areas 1 | . . 1 . Known Exits Taken . | . . . . Unknown Exits Taken 3 | 1 1 1 . Scrap Searched 3 | . . 3 . Spaces Dug . | . . . . Terrain Destroyed 22 | . . 22 . Melee . | . . . . Projectile . | . . . . AOE 22 | . . 22 . Terrain Rammed . | . . . . Walls Destroyed . | . . . . Machines Disabled . | . . . . Actions | -11 -10 -10 -8 --------- Run | Yrd Mat Sub Rec Total 1553 | 89 151 1239 74 Wait 56 | . 3 46 7 Move 1344 | 58 125 1102 59 Hop . | . . . . Pick Up 17 | 7 5 5 . Fast Attach 18 | 8 5 5 . Attach 5 | . . 5 . Detach 5 | 2 . 3 . Swap 11 | . 4 7 . Drop 24 | 1 9 14 . Fire 63 | 13 . 48 2 Melee . | . . . . Ram . | . . . . Kick . | . . . . Crush . | . . . . Escape Stasis . | . . . . Rewire 6 | . . . 6 Trap . | . . . . Miscellaneous 4 | . . 4 . Route ------- -11/Scrapyard -10/Materials -10/Subcaves -8/Recycling History --------- Turn | Location | Event 18 | -11/Scrapyard | Discovered new exit (range 16) 130 | -11/Scrapyard | Entered Materials 248 | -10/Materials | Discovered new exit (range 12) 275 | -10/Materials | Entered Subcaves 276 | -10/Subcaves | Approached by a straggling Scientist 312 | -10/Subcaves | Build established: Mutant 313 | -10/Subcaves | A swath of the cavern ceiling suddenly collapsed 337 | -10/Subcaves | Discovered new exit (range 15) 562 | -10/Subcaves | Visited Clippyterm 564 | -10/Subcaves | Learned location of Deep Caves (-6) 719 | -10/Subcaves | Core integrity fell below 50% 763 | -10/Subcaves | Shifting Twisted Machinery released Sub. Power Source 763 | -10/Subcaves | Shifting Twisted Machinery released Shrapnel Trap 936 | -10/Subcaves | Ambushed by Subdwellers from Twisted Machinery 958 | -10/Subcaves | Core integrity fell below 20% 1104 | -10/Subcaves | Build established: Subdweller-Mutant 1173 | -10/Subcaves | Ambushed by Subdweller buried in earth 1173 | -10/Subcaves | Ambushed by Subdweller buried in earth 1277 | -10/Subcaves | Disturbed a concealed Subdweller 1534 | -10/Subcaves | Entered Recycling 1613 | -8/Recycling | Destroyed by G-47 Trooper with Particle Gun Last Messages --------------- 01471_ Subatomizers dissect the Sml. Storage Unit. 01529_ Acquired 24 matter. LOCATION=UNKNOWN GOAL=ESCAPE 01574_ Y-45 Defender springs to life. 01582_ Y-45 Defender destroyed. 01585_ Acquired 2 matter. 01592_ U-05 Engineer builds a Door. 01600_ R-06 Scavenger collects Lgt. Armor Plating. 01603_ Attempting to rewire I-25 Savior. 01606_ G-47 Trooper springs to life. 01606_ Y-45 Defender springs to life. 01606_ Attempting to rewire I-25 Savior. 01606_ I-25 Savior rewired. 01607_ Attempting to rewire G-47 Trooper. 01610_ G-47 Trooper springs to life. 01611_ Critical hit (Burn: +37). 01612_ Scrap Shield destroyed. Map ----- +----------------------------------------------------+ | ?????????????????????????????????????????????????? | | ?????????????????????????????????????????????????? | | ?????????????????????????????????????????????????? | | ?????????????????????????????????????????????????? | | ?????????????????????????????????????????????????? | | ?????????????????????????????????????????????????? | | ?????????????????????????????????????????????????? | | ?????????????????????????????????????????????????? | | ?????????????????????????????????????????????????? | | ?????????????????????????????????????????????????? | | ?????????????????????????????????????????????????? | | ?????????????????????????????????????????????????? | | ?????????????????????????????????????????????????? | | ?????????????????????????????????????????????????? | | ?????????????????????????????????????????????????? | | ?????????????????????????????#???????????????????? | | ???????????????????????????? #???????????????????? | | ???????????????????????????? #???????????????????? | | ?????????????????###########u##########??????????? | | ?????????????????# s ! u ! a#??????????? | | ?????????????????#r bY Y #??????????? | | ?????????????????# i % r * #??????????? | | ?????????????????# g/!%i ]! =kY g #??????????? | | ?????????????????# ! ! g i #??????????? | | ?????????????????# / g g ! #??????????? | | ?????????????????#/! p @ u[#??????????? | | ???????????#############u############????????????? | | ?????????? #??????????????????????? | | ?????????? #??????????????????????? | | ?????????? u i #??????????????????????? | | ???????????#####%%%#### #??????????????????????? | | ???????????????#%%????# ##############?????????? | | ???????????????##?????# # #?????????? | | ??????????????????????# # """ """ #?????????? | | ?????????????????????## # """ """ #?????????? | | ??????????????#??????# # """ """ #?????????? | | ?????????????## ####?## # #?????????? | | ?????????????# ?# #* """ """ #?????????? | | ?????????????# ?# +% """ """ #?????????? | | ?????????????# # #[ """ """ #?????????? | | ?????????????# # # #?????????? | | ?????????????# + # #?????????? | | ?????????????# # # #?????????? | | ?????????????# # # #?????????? | | ?????????????# ?# ##############?????????? | | ?????????????# ?# #??????????????????????? | | ?????????????#### ##??# #??????????????????????? | | ????????????????##????#####??????????????????????? | | ?????????????????????????????????????????????????? | | ?????????????????????????????????????????????????? | +----------------------------------------------------+ Best States ------------- Heat Dissipation 25 Energy Generation 15 Energy Capacity 250 Matter Stores 300 Matter Capacity 300 Sight Range 16 Terrain Scan Density 10 Armor Coverage 800 Evasion (%) 42 Recoil Reduction 1 Item Schematics ----------------- None Robot Schematics ------------------ None Fabricated ------------ Nothing Repaired ---------- Nothing Alien Tech Used ----------------- None Achievements -------------- None Challenges ------------ None Game ------ Seed CompactDispersalScanner Manual? 0 Play Time 00:17:58 Cumulative 55.5 hours Start 2025.09.15 @ 22:38:29 End 2025.09.15 @ 22:55:35 Sessions 1 Manual Loads 0 Difficulty Rogue Special Mode None Game No. 101 Rogue 101 Adventurer 0 Explorer 0 Win Type - Total 0 Types 0/0/0/0/0/0/0/0/0/0 Lore% 46 Gallery% 33 Achievement% 30 Wizard Run 0 Options --------- Layout 2 ASCII 0 Keyboard 1 Movement Arrows Keybinds 0 Fullscreen 2 Font 32/SmallcapsGlow Map View 50x44 Zoom Use 0% Tactical HUD 1 Map Filters NONE Filters NONE Steam 1 RUN: 8fc8e1a0-c90c-44dc-881c-4cae2b9c3e39